fUSD/lending_fUSD_20241110
["ID","MTS","AMOUNT","RATE_DAILY","PERIOD"]
[341877061,1731262250684,-150.0,0.00014855,2]
[341877063,1731262250694,-150.0,0.00014858,2]
[341877065,1731262250704,-150.0,0.00014866,2]
[341877067,1731262250713,-150.0,0.00014868,2]
[341877069,1731262250723,-150.0,0.00014872,2]
[341877071,1731262250736,-513.74311193,0.00014873,2]
[341877073,1731262250746,-500.0,0.00014873,2]
[341877075,1731262250755,-150.0,0.00014873,2]
[341877077,1731262250765,-150.0,0.00014876,2]
[341877079,1731262250775,-150.0,0.00014881,2]
[341877081,1731262250785,-150.0,0.00014881,2]
[341877083,1731262250795,-150.0,0.00014882,2]
[341877085,1731262250805,-150.0,0.00014882,2]
[341877087,1731262250815,-150.0,0.00014886,2]
[341877089,1731262250825,-262.53576831,0.00014889,2]
[341877091,1731262250835,-1026.19,0.00014889,2]
[341877093,1731262250845,-1111.82,0.00014889,2]
[341877095,1731262250855,-7118.52,0.00014889,2]
[341877097,1731262250865,-2421.43,0.00014889,2]
[341877099,1731262250874,-794.38,0.00014889,2]
[341877101,1731262250884,-1389.92,0.00014889,2]
[341877103,1731262250894,-635.94,0.00014889,2]
[341877105,1731262250904,-1563.04,0.00014889,2]
[341877108,1731262250914,-20278.93114248,0.00014889,2]
[341877111,1731262250934,-397.49831389,0.00014889,2]
[341877122,1731262251033,-465.53580122,0.00014889,2]
[341877144,1731262251228,-196.35,0.00013688,2]
[341877147,1731262251242,-885.94,0.00013698,2]
[341877149,1731262251252,-1300.67500002,0.00014889,2]
[341877151,1731262251263,-8166.17939066,0.00014889,2]
[341877153,1731262251275,-1871.81035173,0.00014889,2]
[341877155,1731262251285,-957.15,0.00014889,2]
[341877157,1731262251295,-561.94,0.00014889,2]
[341877216,1731262251845,-500.0,0.00014891,2]
[341877218,1731262251856,-204.0,0.00014894,2]
[341877220,1731262251865,-204.0,0.00014894,2]
[341877222,1731262251874,-204.0,0.00014894,2]
[341877224,1731262251882,-204.0,0.00014894,2]
[341877226,1731262251891,-204.0,0.00014894,2]
[341877228,1731262251901,-204.0,0.00014894,2]
[341877230,1731262251910,-204.0,0.00014894,2]
[341877232,1731262251919,-204.0,0.00014894,2]
[341877234,1731262251928,-150.0,0.00014894,2]
[341877236,1731262251937,-150.0,0.00014894,2]
[341877238,1731262251948,-150.0,0.00014895,2]
[341877240,1731262251957,-150.0,0.00014898,2]
[341877242,1731262251967,-5236.18,0.00014898,2]
[341877244,1731262251976,-2896.73,0.00014898,2]
[341877246,1731262251989,-1000.0,0.00014899,2]
[341877248,1731262251999,-803.96122381,0.00014899,2]
[341877251,1731262252018,-106.01877619,0.00014899,2]
[341877253,1731262252027,-179.57645713,0.00014899,2]
[341877256,1731262252042,-337.99494,0.00014899,2]
[341877259,1731262252060,-885.94,0.00013698,2]
[341877261,1731262252069,-199.53860287,0.00014899,2]
[341877263,1731262252078,-577.63,0.00014899,2]
[341877265,1731262252087,-1640.68,0.00014899,2]
[341877267,1731262252097,-602.07,0.00014899,2]
[341877269,1731262252106,-829.77,0.00014899,2]
[341877271,1731262252115,-1840.89,0.00014899,2]
[341877273,1731262252124,-208.79262817,0.00014899,2]
[341877275,1731262252136,-291.20737183,0.00014899,2]
[341877277,1731262252145,-128.27060732,0.00014899,2]
[341877279,1731262252156,-1613.30599998,0.00014899,2]
[341877281,1731262252167,-256.8633927,0.00014899,2]
[341877283,1731262252176,-72.49799787,0.00014899,2]
[341877302,1731262252452,-1091.0,0.00013701,2]
[341877304,1731262252462,-885.94,0.00014889,2]
[341877306,1731262252472,-850.30200213,0.00014899,2]
[341877308,1731262252483,-515.1,0.00014899,2]
[341877310,1731262252493,-3011.47,0.00014899,2]
[341877312,1731262252502,-1173.72,0.00014899,2]
[341877314,1731262252511,-3057.12,0.00014899,2]
[341877316,1731262252521,-987.9453,0.00014899,2]
[341877319,1731262252530,-777.06,0.00014899,2]
[341877320,1731262252539,-575.21,0.00014899,2]
[341877323,1731262252549,-2249.62,0.00014899,2]
[341877325,1731262252558,-500.0,0.00014899,2]
[341877327,1731262252567,-5566.77,0.00014899,2]
[341877329,1731262252577,-5670.9,0.00014899,2]
[341877331,1731262252587,-17155.71645612,0.00014899,2]
[341877333,1731262252599,-12073.65,0.00014899,2]
[341877335,1731262252610,-8096.4529848,0.00014899,2]
[341877338,1731262252628,-9775.27055908,0.00014899,2]
[341877340,1731262252638,-2830.41,0.00014899,2]
[341877342,1731262252647,-633.6,0.00014899,2]
[341877344,1731262252657,-1026.19,0.00014899,2]
[341877346,1731262252668,-1111.82,0.00014899,2]
[341877348,1731262252677,-14405.71,0.00014899,2]
[341877350,1731262252686,-7118.52,0.00014899,2]
[341877352,1731262252696,-1743.34,0.00014899,2]
[341877354,1731262252706,-1491.65,0.00014899,2]
[341877356,1731262252716,-4817.45,0.00014899,2]
[341877358,1731262252727,-2421.43,0.00014899,2]
[341877360,1731262252739,-794.38,0.00014899,2]
[341877362,1731262252748,-1389.92,0.00014899,2]
[341877364,1731262252757,-635.94,0.00014899,2]
[341877366,1731262252766,-1563.04,0.00014899,2]
[341877368,1731262252775,-3287.23,0.00014899,2]
[341877370,1731262252784,-25477.48149026,0.00014899,2]
[341877372,1731262252796,-3943.32711185,0.00014899,2]
[341877374,1731262252807,-1171.65,0.00014899,2]
[341877379,1731262252842,-1888.17139789,0.00014899,2]
[341877381,1731262252851,-8847.32860211,0.00014899,2]
[341877383,1731262252862,-2295.79139789,0.00014899,2]
[341877385,1731262252872,-4543.65,0.00014899,2]
[341877387,1731262252883,-957.15,0.00014899,2]
[341877389,1731262252892,-3887.67,0.00014899,2]
[341877391,1731262252902,-1409.12,0.00014899,2]
[341877393,1731262252911,-3093.99,0.00014899,2]
[341877395,1731262252920,-2799.73,0.00014899,2]
[341877397,1731262252930,-1458.93,0.00014899,2]
[341877399,1731262252939,-561.94,0.00014899,2]
[341877401,1731262252949,-885.94,0.00014899,2]
[341877403,1731262252958,-133044.80477828,0.000149,2]
[341877405,1731262252968,-2000.0,0.000149,2]
[341877408,1731262252977,-2000.0,0.000149,2]
[341877409,1731262252989,-2000.0,0.000149,2]
[341877411,1731262252999,-2000.0,0.000149,2]
[341877414,1731262253009,-2000.0,0.000149,2]
[341877416,1731262253018,-2000.0,0.000149,2]
[341877417,1731262253028,-2000.0,0.000149,2]
[341877420,1731262253037,-2000.0,0.000149,2]
[341877421,1731262253047,-2000.0,0.000149,2]
[341877424,1731262253057,-2000.0,0.000149,2]
[341877426,1731262253067,-218.92660781,0.000149,2]
[341877428,1731262253076,-218.9266078,0.000149,2]
[341877429,1731262253085,-153.62203581,0.000149,2]
[341877431,1731262253095,-153.62203581,0.000149,2]
[341877434,1731262253104,-153.62203581,0.000149,2]
[341877436,1731262253114,-153.62203581,0.000149,2]
[341877438,1731262253123,-153.62203581,0.000149,2]
[341877440,1731262253132,-153.62203581,0.000149,2]
[341877441,1731262253141,-153.62203581,0.000149,2]
[341877443,1731262253151,-153.62203581,0.000149,2]
[341877445,1731262253162,-153.62203581,0.000149,2]
[341877448,1731262253172,-153.62203581,0.000149,2]
[341877450,1731262253181,-153.62203581,0.000149,2]
[341877452,1731262253191,-153.62203581,0.000149,2]
[341877454,1731262253200,-153.62203581,0.000149,2]
[341877456,1731262253210,-153.62203581,0.000149,2]
[341877458,1731262253219,-153.62203581,0.000149,2]
[341877459,1731262253228,-153.62203581,0.000149,2]
[341877462,1731262253239,-153.62203581,0.000149,2]
[341877464,1731262253249,-153.62203581,0.000149,2]
[341877466,1731262253258,-153.62203581,0.000149,2]
[341877468,1731262253268,-153.62,0.000149,2]
[341877470,1731262253277,-230.43305372,0.000149,2]
[341877472,1731262253287,-230.43305372,0.000149,2]
[341877474,1731262253296,-230.43305372,0.000149,2]
[341877476,1731262253306,-230.43305372,0.000149,2]
[341877477,1731262253316,-230.43305372,0.000149,2]
[341877479,1731262253325,-230.43305372,0.000149,2]
[341877481,1731262253335,-230.43305372,0.000149,2]
[341877483,1731262253344,-230.43305372,0.000149,2]
[341877485,1731262253353,-230.43305372,0.000149,2]
[341877488,1731262253364,-230.43305372,0.000149,2]
[341877489,1731262253373,-230.43305372,0.000149,2]
[341877492,1731262253383,-230.43305372,0.000149,2]
[341877493,1731262253392,-230.43305372,0.000149,2]
[341877495,1731262253402,-230.43305372,0.000149,2]
[341877497,1731262253412,-230.43305372,0.000149,2]
[341877499,1731262253421,-230.43305372,0.000149,2]
[341877501,1731262253431,-230.43305372,0.000149,2]
[341877503,1731262253440,-230.43305372,0.000149,2]
[341877505,1731262253449,-230.43305372,0.000149,2]
[341877507,1731262253459,-230.43,0.000149,2]
[341877509,1731262253468,-335.46149582,0.000149,2]
[341877511,1731262253477,-335.46149582,0.000149,2]
[341877513,1731262253489,-335.46149582,0.000149,2]
[341877515,1731262253498,-335.46149582,0.000149,2]
[341877517,1731262253507,-335.46149582,0.000149,2]
[341877519,1731262253517,-335.46149582,0.000149,2]
[341877521,1731262253526,-335.46149582,0.000149,2]
[341877523,1731262253535,-335.46149582,0.000149,2]
[341877525,1731262253545,-335.46149582,0.000149,2]
[341877527,1731262253554,-335.46149582,0.000149,2]
[341877529,1731262253563,-335.46149582,0.000149,2]
[341877531,1731262253572,-335.46149582,0.000149,2]
[341877533,1731262253582,-335.46149582,0.000149,2]
[341877535,1731262253591,-335.46149582,0.000149,2]
[341877537,1731262253600,-335.46149582,0.000149,2]
[341877539,1731262253611,-335.46149582,0.000149,2]
[341877541,1731262253625,-335.46149582,0.000149,2]
[341877543,1731262253634,-335.46149582,0.000149,2]
[341877545,1731262253643,-335.46149582,0.000149,2]
[341877547,1731262253653,-335.46,0.000149,2]
[341877549,1731262253664,-503.19224372,0.000149,2]
[341877551,1731262253674,-503.19224372,0.000149,2]
[341877553,1731262253683,-503.19224372,0.000149,2]
[341877555,1731262253694,-503.19224372,0.000149,2]
[341877558,1731262253703,-503.19224372,0.000149,2]
[341877560,1731262253712,-503.19224372,0.000149,2]
[341877561,1731262253721,-503.19224372,0.000149,2]
[341877564,1731262253731,-503.19224372,0.000149,2]
[341877565,1731262253744,-503.19224372,0.000149,2]
[341877567,1731262253754,-503.19224372,0.000149,2]
[341877569,1731262253763,-503.19224372,0.000149,2]
[341877571,1731262253773,-503.19224372,0.000149,2]
[341877574,1731262253783,-503.19224372,0.000149,2]
[341877576,1731262253792,-503.19224372,0.000149,2]
[341877578,1731262253802,-503.19224372,0.000149,2]
[341877580,1731262253812,-503.19224372,0.000149,2]
[341877582,1731262253821,-503.19224372,0.000149,2]
[341877584,1731262253831,-503.19224372,0.000149,2]
[341877586,1731262253841,-503.19224372,0.000149,2]
[341877588,1731262253849,-503.19,0.000149,2]
[341877590,1731262253859,-424.36233934,0.000149,2]
[341877591,1731262253869,-424.36233934,0.000149,2]
[341877593,1731262253878,-424.36233934,0.000149,2]
[341877595,1731262253888,-167.19595899,0.000149,2]
[341877597,1731262253898,-424.36233934,0.000149,2]
[341877599,1731262253907,-424.36233934,0.000149,2]
[341877601,1731262253917,-424.36233934,0.000149,2]
[341877603,1731262253926,-424.36233934,0.000149,2]
[341877605,1731262253936,-424.36233934,0.000149,2]
[341877607,1731262253945,-424.36233934,0.000149,2]
[341877610,1731262253955,-424.36233934,0.000149,2]
[341877611,1731262253964,-424.36233934,0.000149,2]
[341877613,1731262253973,-424.36233934,0.000149,2]
[341877616,1731262253983,-424.36233934,0.000149,2]
[341877618,1731262254001,-424.36233934,0.000149,2]
[341877619,1731262254010,-424.36233934,0.000149,2]
[341877622,1731262254020,-424.36233934,0.000149,2]
[341877623,1731262254029,-424.36233934,0.000149,2]
[341877630,1731262254077,-424.36233934,0.000149,2]
[341877632,1731262254087,-424.36233934,0.000149,2]
[341877634,1731262254096,-424.36,0.000149,2]
[341877636,1731262254106,-636.54350901,0.000149,2]
[341877638,1731262254115,-636.54350901,0.000149,2]
[341877640,1731262254124,-636.54350901,0.000149,2]
[341877642,1731262254133,-636.54350901,0.000149,2]
[341877644,1731262254142,-636.54350901,0.000149,2]
[341877646,1731262254152,-636.54350901,0.000149,2]
[341877648,1731262254161,-636.54350901,0.000149,2]
[341877649,1731262254170,-636.54350901,0.000149,2]
[341877651,1731262254180,-636.54350901,0.000149,2]
[341877653,1731262254189,-636.54350901,0.000149,2]
[341877655,1731262254198,-636.54350901,0.000149,2]
[341877657,1731262254208,-636.54350901,0.000149,2]
[341877659,1731262254218,-636.54350901,0.000149,2]
[341877661,1731262254227,-636.54350901,0.000149,2]
[341877663,1731262254238,-636.54350901,0.000149,2]
[341877665,1731262254248,-636.54350901,0.000149,2]
[341877667,1731262254257,-636.54350901,0.000149,2]
[341877669,1731262254267,-636.54350901,0.000149,2]
[341877671,1731262254277,-636.54350901,0.000149,2]
[341877673,1731262254286,-636.54,0.000149,2]
[341877675,1731262254296,-150.0,0.00014902,2]
[341877677,1731262254306,-150.0,0.00014904,2]
[341877679,1731262254316,-150.0,0.00014904,2]
[341877681,1731262254326,-150.0,0.00014905,2]
[341877683,1731262254335,-150.0,0.00014907,2]
[341877685,1731262254346,-150.0,0.0001491,2]
[341877687,1731262254355,-224.454243,0.00014911,2]
[341877690,1731262254364,-150.0,0.00014913,2]
[341877691,1731262254373,-150.0,0.00014913,2]
[341877693,1731262254383,-150.0,0.00014915,2]
[341877695,1731262254392,-150.0,0.00014919,2]
[341877697,1731262254402,-150.0,0.00014933,2]
[341877699,1731262254411,-150.0,0.00014935,2]
[341877701,1731262254422,-150.0,0.00014935,2]
[341877703,1731262254431,-150.0,0.00014936,2]
[341877705,1731262254441,-150.0,0.00014936,2]
[341877707,1731262254450,-150.0,0.00014936,2]
[341877709,1731262254459,-150.0,0.00014941,2]
[341877711,1731262254469,-150.0,0.00014941,2]
[341877713,1731262254479,-150.0,0.00014942,2]
[341877715,1731262254491,-150.0,0.00014946,2]
[341877718,1731262254501,-150.0,0.00014951,2]
[341877719,1731262254510,-150.0,0.00014952,2]
[341877722,1731262254520,-150.0,0.00014953,2]
[341877724,1731262254530,-150.0,0.00014957,2]
[341877726,1731262254540,-150.0,0.00014959,2]
[341877727,1731262254549,-150.0,0.00014963,2]
[341877730,1731262254559,-150.0,0.00014969,2]
[341877732,1731262254568,-150.0,0.00014971,2]
[341877733,1731262254577,-150.0,0.00014972,2]
[341877735,1731262254587,-500.0,0.00014973,2]
[341877737,1731262254596,-500.0,0.00014973,2]
[341877740,1731262254605,-162.16142326,0.00014973,2]
[341877742,1731262254615,-526.00267614,0.00014973,2]
[341877743,1731262254625,-500.0,0.00014973,2]
[341877745,1731262254634,-500.0,0.00014973,2]
[341877747,1731262254644,-500.0,0.00014973,2]
[341877749,1731262254654,-604.04382528,0.00014973,2]
[341877751,1731262254664,-500.0,0.00014973,2]
[341877753,1731262254673,-500.0,0.00014973,2]
[341877755,1731262254682,-160.47281578,0.00014973,2]
[341877757,1731262254693,-500.0,0.00014973,2]
[341877760,1731262254702,-500.0,0.00014973,2]
[341877762,1731262254712,-500.0,0.00014973,2]
[341877764,1731262254722,-500.0,0.00014973,2]
[341877766,1731262254731,-500.0,0.00014973,2]
[341877768,1731262254744,-402.26812982,0.00014973,2]
[341877770,1731262254754,-500.0,0.00014973,2]
[341877772,1731262254763,-150.0,0.00014973,2]
[341877774,1731262254771,-150.0,0.00014974,2]
[341877775,1731262254780,-150.0,0.00014984,2]
[341877776,1731262254789,-150.0,0.00014984,2]
[341877777,1731262254798,-1026.19,0.00014987,2]
[341877778,1731262254807,-1026.19,0.00014987,2]
[341877779,1731262254816,-1026.19,0.00014987,2]
[341877780,1731262254825,-1026.19,0.00014987,2]
[341877781,1731262254833,-1026.28196346,0.00014987,2]
[341877782,1731262254842,-1111.82,0.00014987,2]
[341877783,1731262254851,-1111.82,0.00014987,2]
[341877784,1731262254860,-1111.82,0.00014987,2]
[341877785,1731262254869,-1111.82,0.00014987,2]
[341877786,1731262254879,-1111.92446305,0.00014987,2]
[341877788,1731262254888,-7118.52,0.00014987,2]
[341877790,1731262254897,-7118.52,0.00014987,2]
[341877792,1731262254906,-7118.52,0.00014987,2]
[341877794,1731262254915,-7118.52,0.00014987,2]
[341877796,1731262254924,-7118.55365463,0.00014987,2]
[341877798,1731262254933,-2421.43,0.00014987,2]
[341877800,1731262254941,-2421.43,0.00014987,2]
[341877802,1731262254950,-2421.43,0.00014987,2]
[341877803,1731262254959,-2421.43,0.00014987,2]
[341877805,1731262254968,-2421.46653784,0.00014987,2]
[341877807,1731262254977,-794.38,0.00014987,2]
[341877809,1731262254987,-794.38,0.00014987,2]
[341877811,1731262254996,-794.38,0.00014987,2]
[341877813,1731262255006,-794.38,0.00014987,2]
[341877815,1731262255015,-794.58220762,0.00014987,2]
[341877817,1731262255024,-1389.92,0.00014987,2]
[341877819,1731262255033,-1389.92,0.00014987,2]
[341877821,1731262255043,-1389.92,0.00014987,2]
[341877823,1731262255052,-1389.92,0.00014987,2]
[341877825,1731262255061,-1390.00677807,0.00014987,2]
[341877827,1731262255070,-635.94,0.00014987,2]
[341877829,1731262255079,-635.94,0.00014987,2]
[341877831,1731262255088,-635.94,0.00014987,2]
[341877833,1731262255098,-635.94,0.00014987,2]
[341877835,1731262255107,-636.17470705,0.00014987,2]
[341877837,1731262255117,-1563.04,0.00014987,2]
[341877839,1731262255126,-1563.04,0.00014987,2]
[341877841,1731262255136,-1563.04,0.00014987,2]
[341877842,1731262255145,-1563.04,0.00014987,2]
[341877844,1731262255154,-1563.20597206,0.00014987,2]
[341877846,1731262255163,-32480.63,0.00014987,2]
[341877847,1731262255171,-32480.63,0.00014987,2]
[341877849,1731262255181,-32480.63,0.00014987,2]
[341877851,1731262255191,-32480.63,0.00014987,2]
[341877852,1731262255200,-32480.70069713,0.00014987,2]
[341877853,1731262255210,-957.15,0.00014987,2]
[341877854,1731262255220,-957.15,0.00014987,2]
[341877855,1731262255229,-957.15,0.00014987,2]
[341877856,1731262255240,-957.15,0.00014987,2]
[341877857,1731262255250,-957.25484599,0.00014987,2]
[341877858,1731262255259,-561.94,0.00014987,2]
[341877859,1731262255268,-561.94,0.00014987,2]
[341877860,1731262255277,-5236.18,0.00014987,2]
[341877861,1731262255287,-5236.18,0.00014987,2]
[341877862,1731262255296,-561.94,0.00014987,2]
[341877863,1731262255306,-561.94,0.00014987,2]
[341877864,1731262255316,-5236.18,0.00014987,2]
[341877865,1731262255326,-562.00330046,0.00014987,2]
[341877866,1731262255337,-5236.18,0.00014987,2]
[341877867,1731262255347,-5236.25590615,0.00014987,2]
[341877868,1731262255356,-2896.73,0.00014987,2]
[341877869,1731262255366,-2896.73,0.00014987,2]
[341877870,1731262255376,-2896.73,0.00014987,2]
[341877871,1731262255386,-2896.73,0.00014987,2]
[341877872,1731262255395,-2896.79937744,0.00014987,2]
[341877873,1731262255404,-885.94,0.00014987,2]
[341877874,1731262255413,-885.94,0.00014987,2]
[341877875,1731262255422,-885.94,0.00014987,2]
[341877876,1731262255432,-885.94,0.00014987,2]
[341877877,1731262255441,-886.12710632,0.00014987,2]
[341877878,1731262255450,-909.98,0.00014988,2]
[341877879,1731262255460,-717.11,0.00014988,2]
[341877880,1731262255469,-577.63,0.00014988,2]
[341877881,1731262255479,-1640.68,0.00014988,2]
[341877882,1731262255490,-602.07,0.00014988,2]
[341877883,1731262255500,-150.0,0.00014988,2]
[341877884,1731262255509,-829.77,0.00014988,2]
[341877885,1731262255519,-1840.89,0.00014988,2]
[341877886,1731262255529,-500.0,0.00014988,2]
[341877887,1731262255538,-1998.44,0.00014988,2]
[341877888,1731262255548,-922.8,0.00014988,2]
[341877889,1731262255558,-515.1,0.00014988,2]
[341877890,1731262255567,-3011.47,0.00014988,2]
[341877891,1731262255577,-1173.72,0.00014988,2]
[341877892,1731262255586,-3057.12,0.00014988,2]
[341877893,1731262255596,-777.06,0.00014988,2]
[341877894,1731262255606,-575.21,0.00014988,2]
[341877895,1731262255616,-2249.62,0.00014988,2]
[341877896,1731262255627,-500.0,0.00014988,2]
[341877897,1731262255638,-5566.77,0.00014988,2]
[341877898,1731262255648,-5670.9,0.00014988,2]
[341877899,1731262255659,-5670.9,0.00014988,2]
[341877900,1731262255668,-5670.9,0.00014988,2]
[341877901,1731262255678,-5670.9,0.00014988,2]
[341877902,1731262255687,-5670.9,0.00014988,2]
[341877903,1731262255699,-5670.92511081,0.00014988,2]
[341877904,1731262255709,-47101.09,0.00014988,2]
[341877905,1731262255718,-2830.41,0.00014988,2]
[341877906,1731262255729,-2830.41,0.00014988,2]
[341877907,1731262255744,-2830.41,0.00014988,2]
[341877908,1731262255754,-2830.41,0.00014988,2]
[341877909,1731262255763,-2830.41,0.00014988,2]
[341877910,1731262255772,-2830.49579625,0.00014988,2]
[341877911,1731262255782,-633.6,0.00014988,2]
[341877912,1731262255792,-14405.71,0.00014988,2]
[341877913,1731262255801,-1743.34,0.00014988,2]
[341877914,1731262255811,-1491.65,0.00014988,2]
[341877915,1731262255822,-1491.65,0.00014988,2]
[341877916,1731262255831,-1491.65,0.00014988,2]
[341877917,1731262255840,-1491.65,0.00014988,2]
[341877918,1731262255850,-1491.65,0.00014988,2]
[341877919,1731262255860,-1491.69704369,0.00014988,2]
[341877920,1731262255869,-4817.45,0.00014988,2]
[341877921,1731262255878,-3287.23,0.00014988,2]
[341877922,1731262255887,-11143.12,0.00014988,2]
[341877923,1731262255897,-11143.12,0.00014988,2]
[341877924,1731262255906,-11143.12,0.00014988,2]
[341877925,1731262255915,-11143.12,0.00014988,2]
[341877926,1731262255924,-11143.12,0.00014988,2]
[341877927,1731262255933,-11143.23644423,0.00014988,2]
[341877928,1731262255943,-4543.65,0.00014988,2]
[341877929,1731262255952,-3887.67,0.00014988,2]
[341877930,1731262255962,-3887.67,0.00014988,2]
[341877931,1731262255971,-3887.67,0.00014988,2]
[341877932,1731262255981,-3887.67,0.00014988,2]
[341877933,1731262255993,-3887.67,0.00014988,2]
[341877934,1731262256003,-3887.75204218,0.00014988,2]
[341877935,1731262256012,-1409.12,0.00014988,2]
[341877936,1731262256022,-3093.99,0.00014988,2]
[341877937,1731262256031,-2799.73,0.00014988,2]
[341877938,1731262256042,-1458.93,0.00014988,2]
[341877939,1731262256051,-1458.93,0.00014988,2]
[341877940,1731262256060,-1458.93,0.00014988,2]
[341877941,1731262256069,-1458.93,0.00014988,2]
[341877942,1731262256078,-1458.93,0.00014988,2]
[341877943,1731262256087,-1459.04036164,0.00014988,2]
[341877944,1731262256096,-909.98,0.00014989,2]
[341877945,1731262256105,-909.98,0.00014989,2]
[341877946,1731262256115,-909.98,0.00014989,2]
[341877947,1731262256124,-909.98,0.00014989,2]
[341877948,1731262256132,-910.20243599,0.00014989,2]
[341877949,1731262256141,-717.11,0.00014989,2]
[341877950,1731262256150,-717.11,0.00014989,2]
[341877951,1731262256159,-717.11,0.00014989,2]
[341877952,1731262256168,-717.11,0.00014989,2]
[341877953,1731262256177,-717.17,0.00014989,2]
[341877954,1731262256186,-577.63,0.00014989,2]
[341877955,1731262256195,-577.63,0.00014989,2]
[341877956,1731262256204,-577.63,0.00014989,2]
[341877957,1731262256214,-577.63,0.00014989,2]
[341877958,1731262256222,-577.68253074,0.00014989,2]
[341877959,1731262256232,-1640.68,0.00014989,2]
[341877960,1731262256244,-1640.68,0.00014989,2]
[341877961,1731262256253,-1640.68,0.00014989,2]
[341877962,1731262256263,-1640.68,0.00014989,2]
[341877963,1731262256272,-1640.87279466,0.00014989,2]
[341877964,1731262256281,-602.07,0.00014989,2]
[341877965,1731262256290,-602.07,0.00014989,2]
[341877966,1731262256299,-602.07,0.00014989,2]
[341877967,1731262256308,-602.07,0.00014989,2]
[341877968,1731262256318,-602.29,0.00014989,2]
[341877969,1731262256327,-829.77,0.00014989,2]
[341877970,1731262256336,-829.77,0.00014989,2]
[341877971,1731262256345,-829.77,0.00014989,2]
[341877972,1731262256354,-829.77,0.00014989,2]
[341877973,1731262256363,-829.9004034,0.00014989,2]
[341877974,1731262256373,-1840.89,0.00014989,2]
[341877975,1731262256382,-1840.89,0.00014989,2]
[341877976,1731262256391,-1840.89,0.00014989,2]
[341877977,1731262256401,-1840.89,0.00014989,2]
[341877978,1731262256410,-1840.97380909,0.00014989,2]
[341877979,1731262256419,-500.0,0.00014989,2]
[341877980,1731262256429,-417.01541836,0.00014989,2]
[341877981,1731262256438,-1998.44,0.00014989,2]
[341877982,1731262256447,-1998.44,0.00014989,2]
[341877983,1731262256456,-1998.44,0.00014989,2]
[341877984,1731262256465,-1998.44,0.00014989,2]
[341877985,1731262256474,-1998.63500516,0.00014989,2]
[341877986,1731262256483,-922.8,0.00014989,2]
[341877987,1731262256494,-922.8,0.00014989,2]
[341877988,1731262256503,-922.8,0.00014989,2]
[341877989,1731262256514,-922.8,0.00014989,2]
[341877990,1731262256524,-923.02211184,0.00014989,2]
[341877991,1731262256533,-515.1,0.00014989,2]
[341877992,1731262256542,-515.1,0.00014989,2]
[341877993,1731262256551,-515.1,0.00014989,2]
[341877994,1731262256561,-515.1,0.00014989,2]
[341877995,1731262256570,-515.26399472,0.00014989,2]
[341877996,1731262256579,-3011.47,0.00014989,2]
[341877997,1731262256588,-3011.47,0.00014989,2]
[341877998,1731262256597,-3011.47,0.00014989,2]
[341877999,1731262256607,-3011.47,0.00014989,2]
[341878000,1731262256619,-3011.61201117,0.00014989,2]
[341878001,1731262256628,-1173.72,0.00014989,2]
[341878002,1731262256637,-1173.72,0.00014989,2]
[341878003,1731262256646,-1173.72,0.00014989,2]
[341878004,1731262256656,-1173.72,0.00014989,2]
[341878005,1731262256665,-1173.84330567,0.00014989,2]
[341878006,1731262256674,-3057.12,0.00014989,2]
[341878007,1731262256684,-3057.12,0.00014989,2]